bitfinex-derivatives/quotes_ETHF0:USTF0_20250621
["timestamp","ask_amount","ask_price","bid_price","bid_amount"]
[1750531781050,5.14082183,2397.9,2397.8,0.06847599]
[1750531782353,10.07455472,2397.9,2397.8,0.06847599]
[1750531784556,17.62955472,2397.9,2397.8,0.06847599]
[1750531790162,5.14082183,2397.9,2397.8,0.06847599]
[1750531794270,5.14223795,2397.9,2397.8,0.06847599]
[1750531794463,5.14223795,2397.9,2397.8,2.77617599]
[1750531795366,5.14223795,2397.9,2397.8,0.06847599]
[1750531795560,6.50233795,2397.9,2397.8,0.06847599]
[1750531796866,7.89833795,2397.9,2397.8,0.06847599]
[1750531798573,7.89833795,2397.9,2397.8,5.99e-06]
[1750531798772,0.83413,2397.2,2397.1,2.6073]
[1750531799071,0.83427,2396.8,2396.7,2.6628]
[1750531799269,4.04207,2396.8,2396.7,2.6628]
[1750531800679,3.2078,2396.8,2396.2,13.78108299]
[1750531800973,0.83433,2396.7,2396.5,2.17306]
[1750531801163,3.2078,2396.8,2396.7,0.83431]
[1750531801967,0.83419,2397.1,2397.0,0.83419]
[1750531801968,3.2078,2397.1,2397.0,0.83419]
[1750531802673,3.2078,2397.1,2397.0,5.83419]
[1750531803171,3.2078,2397.1,2397.0,7.24549]
[1750531803375,4.04185,2397.5,2397.4,0.83406]
[1750531803573,4.30665704,2397.5,2397.4,0.83406]
[1750531803875,3.2078,2398.0,2397.4,12.313]
[1750531804071,0.83387,2398.0,2397.8,0.83391]
[1750531804276,0.83387,2398.0,2397.9,1.3979]
[1750531805167,1.93432502,2398.0,2397.9,1.3979]
[1750531805375,0.83387,2398.0,2397.9,1.3979]
[1750531805675,0.83386,2398.0,2397.9,1.3979]
[1750531806074,4.04164,2398.1,2397.9,1.3979]
[1750531806274,0.83386,2398.0,2397.9,1.3979]
[1750531806467,1.9341785,2398.0,2397.9,1.3979]
[1750531807476,0.83394,2397.8,2397.5,5.3938]
[1750531807677,0.83394,2397.8,2397.6,2.26459]
[1750531807875,0.83391,2397.9,2397.6,2.26459]
[1750531808380,0.83393,2397.8,2397.6,2.26458]
[1750531809275,0.83391,2397.9,2397.6,1.4306]
[1750531809479,0.83393,2397.8,2397.6,2.26457]
[1750531809773,0.83391,2397.9,2397.7,0.83396]
[1750531809978,0.83391,2397.9,2397.8,1.4306]
[1750531814284,0.83389,2397.9,2397.8,1.4306]
[1750531815986,0.83389,2397.9,2397.8,2.26453]
[1750531816278,0.83389,2397.9,2397.8,1.4306]
[1750531817174,0.8341,2397.3,2397.2,3.2078]
[1750531817386,4.93373289,2397.5,2397.2,4.5616]
[1750531817578,4.93373289,2397.5,2397.3,2.18788]
[1750531817784,5.29248,2398.0,2397.5,0.83403]
[1750531818082,0.83406,2397.4,2397.2,3.2078]
[1750531818385,0.83406,2397.4,2397.3,1.3538]
[1750531818779,0.83405,2397.5,2397.3,2.1879]
[1750531819483,0.83406,2397.4,2397.3,2.1879]
[1750531819876,0.83406,2397.5,2397.3,2.1879]
[1750531820386,0.83406,2397.4,2397.3,2.1879]
[1750531820573,3.2078,2397.7,2397.3,1.3538]
[1750531820777,0.83402,2397.6,2397.5,0.83402]
[1750531821587,0.83398,2397.7,2397.6,0.83399]
[1750531821785,0.834,2397.6,2397.5,0.83401]
[1750531822280,0.83404,2397.5,2397.4,0.83404]
[1750531822484,0.83406,2397.4,2397.3,2.18788]
[1750531824378,0.83406,2397.4,2397.3,2.1879]
[1750531824583,0.83406,2397.4,2397.3,1.3538]
[1750531825087,0.8341,2397.3,2397.2,7.38047599]
[1750531825487,0.8341,2397.3,2397.2,8.69207599]
[1750531826386,0.8341,2397.3,2397.2,9.52620599]
[1750531826588,0.8341,2397.3,2397.2,8.69207599]
[1750531826788,0.8341,2397.3,2397.2,9.52620599]
[1750531826988,0.83409,2397.4,2397.2,9.52620599]
[1750531827190,0.8341,2397.3,2397.2,9.52620599]
[1750531827995,0.83408,2397.4,2397.3,0.83409]
[1750531828192,0.83408,2397.4,2397.3,2.14569]
[1750531829588,1.3633,2397.6,2397.3,1.3116]
[1750531829795,0.83401,2397.6,2397.5,0.83402]
[1750531829997,0.83395,2397.8,2397.4,3.2078]
[1750531830189,0.83395,2397.8,2397.7,0.83396]
[1750531830590,0.83396,2397.7,2397.6,1.49587]
[1750531830999,0.83396,2397.7,2397.6,0.6619]
[1750531831796,0.83396,2397.7,2397.6,1.49589]
[1750531832186,0.83395,2397.8,2397.7,0.83395]
[1750531832498,5.41068,2398.0,2397.8,0.83392]
[1750531832897,0.83389,2397.9,2397.8,0.83392]
[1750531833396,5.41068,2398.0,2397.8,0.83392]
[1750531833592,5.41068,2398.0,2397.9,0.83389]
[1750531833793,2.64337858,2398.6,2398.3,0.83375]
[1750531833997,0.83371,2398.5,2398.3,0.83375]
[1750531834395,0.83372,2398.4,2398.2,0.83376]
[1750531834595,0.83376,2398.3,2398.2,0.83378]
[1750531835002,2.64337858,2398.4,2398.3,0.83375]
[1750531835196,3.47709858,2398.4,2398.3,0.83375]
[1750531836505,0.83375,2398.3,2398.2,0.83376]
[1750531836898,3.47710858,2398.4,2398.3,0.83375]
[1750531837099,0.83377,2398.3,2398.2,0.83378]
[1750531837299,0.83379,2398.2,2398.1,1.5144]
[1750531838197,5.85117858,2398.5,2398.1,0.6806]
[1750531838397,6.68486858,2398.5,2398.4,0.83372]
[1750531838597,0.8338,2398.2,2398.1,0.8338]
[1750531840903,0.8338,2398.2,2398.1,2.1438]
[1750531841207,0.83382,2398.1,2398.0,7.98583]
[1750531842412,0.83382,2398.1,2398.0,0.83383]
[1750531842614,0.83382,2398.1,2398.0,7.98583]
[1750531843202,0.83381,2398.2,2398.1,0.83381]
[1750531843809,0.83381,2398.2,2398.0,7.98583]
[1750531844003,0.83382,2398.1,2398.0,7.98583]
[1750531844506,0.83381,2398.2,2398.1,0.83382]
[1750531844707,2.64337858,2398.3,2398.0,7.152]
[1750531844910,0.83382,2398.2,2398.1,1.3722]
[1750531845210,0.83382,2398.2,2398.1,2.20602]
[1750531846615,0.83382,2398.2,2398.1,1.3722]
[1750531847605,3.2078,2398.5,2398.1,9.01557858]
[1750531847803,0.8337,2398.5,2398.1,1.3722]
[1750531848105,2.64337858,2398.7,2398.1,1.3722]
[1750531848303,0.83368,2398.5,2398.3,0.83374]
[1750531848913,0.83368,2398.5,2398.4,0.83372]
[1750531849607,0.83368,2398.5,2398.3,0.83373]
[1750531849906,0.83382,2398.1,2397.8,3.26128299]
[1750531850107,7.93543858,2398.5,2397.7,11.23866299]
[1750531850108,2.64337858,2398.2,2397.7,11.23866299]
[1750531850306,0.83383,2398.1,2398.0,0.83383]
[1750531850904,2.64337858,2398.2,2398.1,0.83382]
[1750531851309,2.64337858,2398.2,2398.1,0.90229599]
[1750531852307,1.3543,2398.4,2398.3,0.83375]
[1750531852507,0.6483,2398.4,2398.3,0.83375]
[1750531852712,3.2078,2398.5,2398.4,0.83372]
[1750531852912,3.2078,2398.5,2398.3,0.83374]
[1750531853212,0.83372,2398.4,2398.3,0.83375]
[1750531853406,0.83373,2398.4,2398.3,0.83372]
[1750531854509,6.68488858,2398.5,2398.4,0.83372]
[1750531854811,0.83372,2398.4,2398.3,0.83373]
[1750531855215,6.68488858,2398.5,2398.4,0.83372]
[1750531855402,5.85117858,2398.5,2398.1,0.06847599]
[1750531855608,6.68488858,2398.5,2398.4,0.83372]
[1750531856007,0.83373,2398.4,2398.3,0.83373]
[1750531856914,6.68488858,2398.5,2398.4,0.83372]
[1750531858116,0.83373,2398.4,2398.3,0.83373]
[1750531858310,6.68489858,2398.5,2398.1,1.49767599]
[1750531858523,0.83372,2398.4,2398.3,0.83372]
[1750531858718,6.68488858,2398.5,2398.1,1.49767599]
[1750531859417,4.04151,2398.5,2398.4,0.83372]
[1750531860319,0.83373,2398.4,2398.3,0.83373]
[1750531860514,4.04151,2398.5,2398.1,1.49767599]
[1750531860720,3.47710858,2398.4,2398.3,0.83373]
[1750531861522,2.64337858,2398.4,2398.3,0.83373]
[1750531862221,3.47709858,2398.4,2398.3,0.83373]
[1750531862923,2.64337858,2398.4,2398.3,0.83373]
[1750531864327,3.2078,2398.5,2398.4,0.83372]
[1750531864626,4.04149,2398.5,2398.4,0.83372]
[1750531865727,3.2078,2398.5,2398.4,0.83372]
[1750531865928,3.2078,2398.5,2398.4,2.20112]
[1750531867735,3.2078,2398.8,2398.7,0.83362]
[1750531867926,5.13922502,2398.8,2398.7,0.83362]
[1750531869739,4.30564502,2398.8,2398.7,0.83362]
[1750531870132,3.2078,2398.8,2398.7,0.83362]
[1750531870937,3.2078,2398.8,2398.5,0.83367]
[1750531871139,3.47701858,2398.7,2398.6,0.83365]
[1750531871735,2.64337858,2398.7,2398.6,0.83365]
[1750531872236,5.85117858,2398.8,2398.7,0.83362]
[1750531872434,3.2078,2398.8,2398.7,0.83362]
[1750531874044,15.00746858,2399.1,2399.0,0.83351]
[1750531874243,0.83354,2399.0,2398.9,0.83353]
[1750531874545,15.00747858,2399.1,2399.0,0.83351]
[1750531874746,16.10325467,2399.1,2399.0,0.83351]
[1750531875449,15.00747858,2399.1,2399.0,0.83351]
[1750531875742,16.11049285,2399.1,2399.0,0.83351]
[1750531876148,3.2078,2399.1,2399.0,0.83351]
[1750531876847,0.83341,2399.3,2399.2,0.83344]
[1750531877437,10.48474858,2399.4,2399.3,0.83341]
[1750531877643,3.2078,2399.5,2399.4,0.83337]
[1750531877844,3.2078,2399.8,2399.7,0.83327]
[1750531879941,3.2078,2400.1,2400.0,0.83317]
[1750531880745,5.85117858,2400.1,2400.0,0.83317]
[1750531881047,10.85117858,2400.1,2399.5,0.6512]
[1750531881251,4.0411,2399.7,2399.5,0.83332]
[1750531881450,4.0411,2399.7,2399.6,0.8333]
[1750531881749,0.8333,2399.7,2399.6,0.8333]
[1750531882140,0.8333,2399.6,2399.5,0.83332]
[1750531882347,4.5731,2399.7,2399.6,0.8333]
[1750531882551,0.8333,2399.6,2399.5,0.83332]
[1750531882752,5.40639,2399.7,2399.6,0.8333]
[1750531882952,4.5731,2399.7,2399.6,0.8333]
[1750531883451,9.64937858,2400.0,2399.6,0.83329]
[1750531883747,0.8333,2399.6,2399.5,0.83334]
[1750531884055,3.47667858,2399.6,2399.3,1.3469]
[1750531884350,3.47667858,2399.6,2399.5,0.83334]
[1750531885547,16.73267858,2399.6,2399.1,0.83346]
[1750531885856,5.85117858,2399.2,2398.7,0.6681]
[1750531886054,3.47689858,2399.0,2398.8,0.83356]
[1750531886355,3.47691858,2399.0,2398.7,0.6681]
[1750531886556,0.83356,2398.9,2398.7,0.6681]
[1750531887159,0.83356,2398.9,2398.8,0.83358]
[1750531887657,4.16030858,2399.0,2398.9,0.83355]
[1750531887857,0.83369,2398.5,2398.1,58.29028299]
[1750531888054,3.2078,2398.6,2398.1,8.9737]
[1750531888249,3.2078,2398.6,2398.3,0.83374]
[1750531888250,3.47708858,2398.5,2398.3,0.83374]
[1750531888554,3.47708858,2398.5,2398.1,8.9737]
[1750531888555,0.83375,2398.4,2398.2,0.83377]
[1750531889055,0.83375,2398.4,2398.3,0.83376]
[1750531889251,4.83038858,2398.5,2398.3,0.83376]
[1750531890056,0.83372,2398.4,2398.3,0.83376]
[1750531890758,4.83038858,2398.5,2398.3,0.83376]
[1750531891659,0.83372,2398.4,2398.3,0.83376]
[1750531891861,4.83038858,2398.5,2398.4,0.83372]
[1750531892053,4.83038858,2398.5,2398.3,0.83373]
[1750531892358,0.83372,2398.4,2398.3,0.83373]
[1750531892948,0.83372,2398.4,2398.1,1.9677]
[1750531893153,0.83373,2398.4,2398.3,0.83376]
[1750531893661,0.83373,2398.4,2398.2,0.83377]
[1750531894156,2.187,2398.5,2398.1,1.9677]
[1750531894456,1.51709,2398.5,2398.3,0.83374]
[1750531895054,1.51709,2398.5,2398.4,0.83372]
[1750531896364,1.51709,2398.5,2398.3,0.90220599]
[1750531896959,1.51709,2398.5,2398.4,0.83372]
[1750531897261,3.8902,2398.7,2398.3,0.06847599]
[1750531897460,0.668,2398.9,2398.8,0.83358]
[1750531898152,0.83358,2398.8,2398.7,0.83359]
[1750531898752,0.83357,2398.9,2398.7,0.83359]
[1750531898954,0.83359,2398.8,2398.6,2.0171]
[1750531899153,0.83362,2398.7,2398.6,0.6715]
[1750531899350,0.8336,2398.8,2398.6,1.50512]
[1750531899865,0.83362,2398.7,2398.6,1.50512]
[1750531900162,0.83362,2398.7,2398.6,0.6715]
[1750531900360,0.83365,2398.6,2398.4,2.18581]
[1750531900665,0.83369,2398.5,2398.4,2.18581]
[1750531901060,0.83369,2398.5,2398.4,1.3521]
[1750531901253,5.85117858,2398.7,2398.2,0.6908]
[1750531901457,0.83366,2398.6,2398.5,0.83367]
[1750531904970,0.8337,2398.5,2398.4,0.8337]
[1750531905466,0.83367,2398.6,2398.5,0.83367]
[1750531906262,5.85117858,2398.7,2398.3,1.42057599]
[1750531906459,0.83372,2398.4,2398.3,2.25431599]
[1750531908266,0.83372,2398.4,2398.3,2.18584]
[1750531908964,0.83371,2398.5,2398.4,0.8337]
[1750531911470,0.83372,2398.4,2398.3,2.25430599]
[1750531911773,0.83371,2398.5,2398.4,0.83371]
[1750531913365,0.94819384,2398.5,2398.4,0.83371]
[1750531914271,0.94819384,2398.5,2398.4,0.83372]
[1750531914471,0.83372,2398.4,2398.3,0.06847599]
[1750531914775,4.04152,2398.4,2398.3,0.90223599]
[1750531915073,4.04152,2398.4,2398.3,0.06847599]
[1750531915263,0.83376,2398.3,2398.2,1.52458]
[1750531915465,3.32228384,2398.4,2398.3,0.83376]
[1750531915466,4.15602384,2398.4,2398.3,0.83376]
[1750531916365,4.15602384,2398.4,2398.3,0.90223599]
[1750531916871,4.15602384,2398.4,2398.3,0.06847599]
[1750531917364,0.83379,2398.2,2398.1,0.8338]
[1750531917757,2.64337858,2398.3,2398.2,0.83379]
[1750531918362,2.75786242,2398.3,2398.2,0.83379]
[1750531918564,0.83381,2398.2,2398.1,0.83381]
[1750531919376,0.94829384,2398.2,2398.1,0.83381]
[1750531919670,0.11448384,2398.2,2398.1,0.83381]
[1750531919867,0.94827384,2398.2,2398.1,0.83381]
[1750531921263,0.94827384,2398.2,2398.0,1.3483]
[1750531921264,0.83383,2398.1,2398.0,2.18213]
[1750531921464,0.94831384,2398.1,2398.0,2.18213]
[1750531922072,0.83389,2398.0,2397.9,0.83388]
[1750531922477,0.8339,2397.9,2397.8,2.15681]
[1750531923575,0.94838384,2397.9,2397.8,2.15681]
[1750531924271,0.11448384,2397.9,2397.8,1.49901]
[1750531924479,0.11448384,2397.9,2397.8,7.35018858]
[1750531924971,0.11448384,2397.9,2397.8,5.57298858]
[1750531925678,0.11448384,2397.9,2397.8,2.92961]
[1750531927276,4.04155,2398.4,2398.3,0.83376]
[1750531927481,3.2078,2398.4,2398.3,0.83376]
[1750531929081,0.83369,2398.5,2398.4,0.83372]
[1750531929276,0.83368,2398.6,2398.4,0.83372]
[1750531929483,0.83368,2398.6,2398.5,0.83369]
[1750531929785,0.83368,2398.6,2398.5,0.83368]
[1750531931375,0.83371,2398.5,2398.4,0.83372]
[1750531932276,0.83371,2398.5,2398.3,1.4062]
[1750531932277,0.83368,2398.6,2398.5,0.83368]
[1750531932480,0.83369,2398.5,2398.4,0.8337]
[1750531934181,0.83369,2398.5,2398.3,2.23993]
[1750531934382,0.83364,2398.7,2398.3,1.4062]
[1750531934686,3.47701858,2398.7,2398.3,1.4062]
[1750531934885,3.47701858,2398.7,2398.5,0.83367]
[1750531935186,2.64337858,2398.7,2398.3,1.4062]
[1750531935480,4.04155,2398.4,2398.3,0.83375]
[1750531935784,4.04156,2398.4,2398.3,0.83376]
[1750531935985,0.83386,2398.0,2397.9,0.06847599]
[1750531936283,3.47723858,2398.0,2397.9,0.06847599]
[1750531936683,3.94357858,2398.0,2397.5,3.2078]
[1750531936881,0.834,2397.6,2397.5,4.04182]
[1750531937087,0.83397,2397.7,2397.6,0.834]
[1750531937384,0.83397,2397.7,2397.5,3.2078]
[1750531937385,0.834,2397.6,2397.5,3.2078]
[1750531937588,0.83412,2397.3,2397.1,4.16278862]
[1750531937783,4.04192,2397.3,2397.1,0.83417]
[1750531937982,3.2078,2397.3,2396.9,1.4136]
[1750531938180,4.04192,2397.3,2397.1,0.83416]
[1750531938480,4.04192,2397.3,2397.2,0.83414]
[1750531938682,3.2078,2397.3,2396.9,1.4136]
[1750531938882,4.04191,2397.3,2396.9,1.4136]
[1750531939184,4.04191,2397.3,2396.5,3.32862862]
[1750531939185,3.2078,2397.0,2396.5,3.32862862]
[1750531939484,0.83432,2396.7,2396.5,0.83436]
[1750531939680,0.83435,2396.6,2396.3,0.83443]
[1750531939890,0.83435,2396.6,2396.3,2.12743]
[1750531940183,0.83435,2396.6,2396.3,2.12742]
[1750531940381,0.83439,2396.5,2396.3,2.12742]
[1750531940580,0.83437,2396.6,2396.3,2.12742]
[1750531940781,0.83437,2396.6,2396.4,0.83442]
[1750531940984,0.83439,2396.5,2396.3,2.12743]
[1750531941382,0.8344,2396.5,2396.3,2.12743]
[1750531941587,0.8344,2396.5,2396.3,2.12745]
[1750531941779,2.64337858,2396.7,2396.3,1.293]
[1750531941979,0.83436,2396.6,2396.4,0.83441]
[1750531942296,0.83436,2396.6,2396.3,2.12742]
[1750531942483,0.83439,2396.5,2396.3,0.83442]
[1750531942884,0.83439,2396.5,2396.2,4.69287]
[1750531943185,0.83443,2396.4,2395.9,3.2078]
[1750531943392,0.83439,2396.5,2396.3,0.83443]
[1750531943691,0.83442,2396.4,2396.2,0.83447]
[1750531944276,10.8953,2396.6,2396.0,1.4043]
[1750531944277,0.83445,2396.3,2396.1,0.83451]
[1750531944683,11.6056,2396.6,2396.0,1.4043]
[1750531944987,0.8344,2396.5,2396.3,0.83444]
[1750531945686,11.6066,2396.6,2396.0,1.4043]
[1750531945987,1.4238,2396.6,2396.5,0.83438]
[1750531946183,4.93822522,2397.0,2396.8,0.83428]
[1750531946184,1.49813,2397.0,2396.8,0.83428]
[1750531946491,0.83444,2396.4,2396.2,0.83448]
[1750531946691,3.2078,2396.5,2396.1,0.83451]
[1750531946993,0.6639,2396.4,2395.9,0.83458]
[1750531947184,6.96302522,2396.4,2396.0,0.83456]
[1750531947491,0.686,2396.3,2396.0,0.83456]
[1750531947692,0.686,2396.3,2395.8,2.6399]
[1750531947693,0.83454,2396.1,2395.9,0.83457]
[1750531947889,0.83451,2396.2,2396.0,0.83456]
[1750531948482,2.0469,2396.3,2395.8,2.6399]
[1750531948483,0.686,2396.3,2395.8,2.6399]
[1750531948783,1.52046,2396.3,2396.2,0.83449]
[1750531948982,0.686,2396.3,2396.2,0.83449]
[1750531949183,0.6639,2396.4,2396.2,0.83449]
[1750531949392,1.49832,2396.4,2396.2,0.83449]
[1750531949686,0.83445,2396.3,2396.2,0.83449]
[1750531950293,0.6639,2396.4,2396.0,3.2078]
[1750531950590,0.83445,2396.3,2396.2,0.83448]
[1750531950790,0.83445,2396.3,2396.0,3.2078]
[1750531950791,0.6639,2396.4,2396.0,4.04235]
[1750531950991,0.83451,2396.2,2396.0,4.04235]
[1750531951389,0.83449,2396.2,2396.0,4.04233]
[1750531951591,0.6639,2396.4,2396.0,3.2078]
[1750531951894,0.83449,2396.2,2396.0,4.04234]
[1750531952297,1.9833,2396.4,2396.0,4.04234]
[1750531952298,0.83452,2396.1,2396.0,4.04234]
[1750531952695,1.9833,2396.4,2396.1,0.83452]
[1750531952897,0.83448,2396.3,2396.1,0.83452]
[1750531953095,0.83451,2396.2,2396.0,3.2078]
[1750531953287,0.83451,2396.2,2396.1,0.83452]
[1750531953487,0.83448,2396.3,2396.1,0.83452]
[1750531953690,0.6639,2396.4,2396.3,0.83445]
[1750531953994,1.49832,2396.4,2396.0,3.2078]
[1750531954195,1.49832,2396.4,2396.3,0.83445]
[1750531954695,0.6639,2396.4,2396.3,0.83445]
[1750531954994,0.7049,2396.7,2396.2,2.08622]
[1750531955291,0.7049,2396.7,2396.6,0.83435]
[1750531955484,11.0031,2396.8,2396.7,0.83431]
[1750531955691,10.1688,2396.8,2396.7,0.83431]
[1750531956295,0.83431,2396.7,2396.6,0.83433]
[1750531956502,10.1688,2396.8,2396.5,1.2998]
[1750531956794,0.83435,2396.6,2396.5,2.13415]
[1750531956982,0.83435,2396.6,2396.5,0.83435]
[1750531957186,0.83435,2396.6,2396.5,0.83436]
[1750531958289,3.2078,2396.8,2396.4,0.83439]
[1750531958290,0.83438,2396.5,2396.4,0.83439]
[1750531958897,2.08579,2396.7,2396.0,5.97147599]
[1750531959196,0.83449,2396.2,2396.1,0.83449]
[1750531960590,0.83445,2396.4,2396.3,0.83445]
[1750531960793,0.83445,2396.3,2396.2,0.83446]
[1750531960992,0.83452,2396.2,2396.1,0.83452]
[1750531961195,9.0725,2396.6,2396.2,0.83446]
[1750531961498,9.0725,2396.6,2396.0,5.97147599]
[1750531961698,11.15845,2396.6,2396.0,5.97147599]
[1750531961893,0.83449,2396.2,2396.1,0.8345]
[1750531962488,0.83449,2396.2,2396.0,0.06847599]
[1750531962688,0.83452,2396.1,2396.0,0.06847599]
[1750531962993,8.14602522,2396.5,2396.1,0.83452]
[1750531962994,0.83451,2396.2,2396.1,0.83452]
[1750531963399,0.83452,2396.1,2396.0,0.90301599]
[1750531963799,0.83451,2396.2,2396.1,0.83452]
[1750531963999,0.83448,2396.3,2396.2,0.83449]
[1750531964190,0.83448,2396.3,2396.0,0.06847599]
[1750531964395,0.83449,2396.2,2396.1,2.1922]
[1750531965002,0.83447,2396.3,2396.2,0.83448]
[1750531965397,0.83449,2396.2,2396.1,2.1922]
[1750531965602,0.83448,2396.3,2396.2,0.83449]
[1750531966001,0.83445,2396.4,2396.1,1.3577]
[1750531966200,0.83445,2396.4,2396.1,2.0554]
[1750531966407,0.83445,2396.4,2396.2,0.83449]
[1750531966606,0.83445,2396.4,2396.3,0.83445]
[1750531966899,1.52366,2396.6,2396.5,0.83438]
[1750531967104,0.83436,2396.6,2396.5,0.83438]
[1750531967310,12.81397698,2396.8,2396.2,0.6975]
[1750531967311,5.85297698,2396.8,2396.2,2.78369]
[1750531967504,1.12038145,2396.7,2396.5,0.83435]
[1750531967707,1.12038145,2396.6,2396.5,0.83435]
[1750531967904,3.2078,2396.8,2396.7,0.83431]
[1750531968708,4.04208,2396.8,2396.6,0.83432]
[1750531968899,0.83431,2396.7,2396.6,1.53202]
[1750531969099,4.0421,2396.8,2396.6,1.53202]
[1750531969298,4.0421,2396.8,2396.7,0.83431]
[1750531969495,4.04208,2396.8,2396.7,0.83431]
[1750531969699,4.04208,2396.8,2396.7,2.15441]
[1750531970808,3.2078,2396.8,2396.7,2.15441]
[1750531971305,4.04208,2396.8,2396.7,2.15441]
[1750531972206,3.2078,2396.8,2396.7,2.15441]
[1750531973007,0.83427,2396.9,2396.7,2.15441]
[1750531973209,0.83427,2396.9,2396.8,0.83428]
[1750531973505,3.2078,2397.1,2397.0,0.83421]
[1750531974410,0.83415,2397.2,2397.1,0.83417]
[1750531975210,0.83418,2397.1,2397.0,0.83418]
[1750531975409,0.83416,2397.2,2397.1,0.83417]
[1750531975609,0.83418,2397.1,2397.0,0.83418]
[1750531975801,0.83416,2397.2,2396.9,1.4045]
[1750531976106,0.83417,2397.1,2397.0,0.83418]
[1750531976307,0.83416,2397.2,2397.1,0.83417]
[1750531978911,0.83416,2397.2,2396.9,1.4045]
[1750531979210,0.83418,2397.1,2397.0,0.83419]
[1750531979511,0.83416,2397.2,2397.1,0.83417]
[1750531981119,3.47933698,2397.2,2397.1,0.83417]
[1750531981404,0.83418,2397.1,2397.0,0.83418]
[1750531981607,0.83421,2397.0,2396.9,0.83424]
[1750531981802,3.2078,2397.1,2396.9,0.83423]
[1750531982112,3.2078,2397.1,2397.0,0.83421]
[1750531982315,3.2078,2397.1,2396.9,0.83422]
[1750531982611,0.83421,2397.0,2396.9,0.83422]
[1750531982911,3.2078,2397.1,2397.0,0.83421]
[1750531984215,4.04197,2397.1,2397.0,0.83421]
[1750531984513,3.2078,2397.1,2397.0,0.83421]
[1750531985911,4.04197,2397.1,2397.0,0.83421]
[1750531986105,3.2078,2397.1,2397.0,0.83421]
[1750531987013,0.83421,2397.0,2396.9,1.47087599]
[1750531987216,0.83421,2397.0,2396.9,0.06847599]
[1750531988018,3.2078,2397.1,2397.0,0.83421]
[1750531988418,3.2078,2397.1,2397.0,2.25131]
[1750531990108,0.83413,2397.3,2397.2,0.83414]
[1750531991520,0.83414,2397.2,2397.1,1.50995]
[1750531996016,0.83411,2397.3,2397.2,0.83411]
[1750531996216,0.83414,2397.2,2397.1,1.50995]
[1750531999127,0.83414,2397.2,2397.1,0.6758]
[1750531999329,0.83421,2397.0,2396.9,0.90271599]
[1750531999530,0.83421,2397.0,2396.9,0.83424]
[1750531999921,0.83424,2396.9,2396.8,1.49716]
[1750532000528,0.83423,2397.0,2396.9,0.83423]
[1750532001226,1.54393,2397.0,2396.9,0.83423]
[1750532001630,1.54393,2397.0,2396.7,0.6926]
[1750532001631,0.83424,2396.9,2396.8,0.83425]
[1750532002129,28.16262,2396.9,2396.3,6.53642862]
[1750532002332,0.83436,2396.6,2396.5,0.83437]
[1750532003129,0.83436,2396.6,2396.3,3.2078]
[1750532003130,3.2078,2396.8,2396.4,2.08605]
[1750532003427,0.6914,2397.2,2396.7,5.29359]
[1750532003632,0.6914,2397.2,2397.1,0.06847599]
[1750532003926,0.6914,2397.2,2397.1,0.90264599]
[1750532004124,29.2838,2397.4,2397.3,0.8341]
[1750532004125,3.2078,2397.4,2397.3,0.8341]
[1750532004428,30.40204848,2397.4,2397.3,0.8341]
[1750532004631,31.23614848,2397.4,2397.3,0.8341]
[1750532005230,0.83411,2397.3,2397.2,0.83411]
[1750532006329,0.83414,2397.2,2397.1,0.06847599]
[1750532006531,2.90354,2397.2,2397.1,0.06847599]
[1750532007328,0.6857,2397.2,2397.1,0.90264599]
[1750532007527,27.59184,2397.2,2397.1,0.90264599]
[1750532007926,27.59184,2397.2,2397.1,0.06847599]
[1750532008125,27.59184,2397.2,2397.1,0.90264599]
[1750532008732,27.59184,2397.2,2397.1,0.06847599]
[1750532008933,26.7577,2397.2,2397.1,0.90264599]
[1750532009934,0.6857,2397.2,2397.1,0.90264599]
[1750532010131,3.2078,2397.4,2397.3,0.8341]
[1750532010829,3.2078,2397.4,2397.3,2.1827]
[1750532011033,26.068,2397.6,2397.3,2.1827]
[1750532011338,3.2078,2397.7,2397.6,0.834]
[1750532011826,2.47714502,2397.8,2397.7,0.83397]
[1750532012326,3.31107502,2397.8,2397.7,0.83397]
[1750532012525,5.122322,2397.8,2397.7,0.83397]
[1750532012727,0.83446,2396.3,2395.7,8.32157156]
[1750532012931,3.2078,2396.0,2395.7,8.39004755]
[1750532013127,29.4918,2396.0,2395.8,1.3695]
[1750532013327,29.4918,2396.0,2395.7,0.90311599]
[1750532013528,29.4918,2396.0,2395.8,0.83462]
[1750532013727,30.32636,2396.0,2395.7,0.90311599]
[1750532013929,29.4918,2396.0,2395.8,0.83463]
[1750532014125,30.32636,2396.0,2395.7,0.90311599]
[1750532014540,29.4918,2396.0,2395.7,0.90311599]
[1750532014836,29.4918,2396.0,2395.7,0.06847599]
[1750532015036,30.32637,2396.0,2395.7,0.06847599]
[1750532015237,3.2078,2396.0,2395.8,0.8346]
[1750532015434,3.2078,2396.0,2395.8,2.24187599]
[1750532016038,3.2078,2396.0,2395.9,0.83459]
[1750532016229,3.2078,2396.0,2395.9,2.17339]
[1750532017335,3.2078,2396.0,2395.9,2.24186599]
[1750532018640,29.4618,2396.0,2395.9,2.24186599]
[1750532018833,26.254,2396.0,2395.9,2.24186599]
[1750532020738,3.2078,2396.3,2395.9,1.40727599]
[1750532020945,26.218,2396.2,2396.1,0.83452]
[1750532021439,3.2078,2396.3,2396.2,0.83449]
[1750532021741,29.4178,2396.3,2396.2,0.83449]
[1750532021942,29.4158,2396.3,2396.2,0.83449]
[1750532022338,30.25025,2396.3,2396.2,0.83449]
[1750532022740,29.4188,2396.3,2396.2,0.83449]
[1750532023350,29.4188,2396.3,2395.3,2.08695]
[1750532023542,3.2078,2396.0,2395.9,0.83459]